Cogmind - Beta 17 @@@ ROGUE MODE // 2026.07.31 @ 17:12:09 Player: Mechanikum Result: Destroyed by G-34 Mercenary with Small Laser Performance ------------- Evolutions (0) 0 Regions Visited (1) 200 Robots Destroyed (29) 145 Value Destroyed (703) 703 Prototype IDs (1) 20 Alien Tech Used (0) 0 Bonus (6100) 6100 TOTAL SCORE: 7168 Bonus ------- Prayed to X0-1V1 5000 Major X0-1V1 Interference 1100 Cogmind --------- Core Integrity 0/150 Matter 286/300 Energy 1365/1365 System Corruption 0% Temperature Cool (20) Movement Treading (160) Location -10/Materials Parts ------- > --- POWER (1) -------- Improved Ion Engine > --- PROPULSION (2) --- Light Treads Light Treads > --- UTILITY (2) ------ Large Storage Unit X0-1V1's Piety Tracker > --- WEAPON (2) ------- Light Assault Rifle Light Assault Rifle > --- INVENTORY (16) --- Ion Engine Ion Engine Light Ion Engine Light Ion Engine Light Ion Engine Light Ion Engine Light Treads Light Treads Aluminum Leg Small Storage Unit Light Armor Plating EM Pulse Gun Assault Rifle Grenade Launcher Datajack Peak State ------------ > --- POWER ------------ Improved Ion Engine > --- PROPULSION ------- Light Treads Light Treads > --- UTILITY ---------- Large Storage Unit X0-1V1's Piety Tracker > --- WEAPON ----------- EM Shotgun Light Assault Rifle > --- INVENTORY -------- Ion Engine Ion Engine Light Ion Engine Light Ion Engine Light Ion Engine Light Ion Engine Light Treads Aluminum Leg Small Storage Unit Light Armor Plating EM Pulse Gun Assault Rifle Light Assault Rifle Grenade Launcher Datajack [Rating: 22] Favorites ----------- Power Ion Engine Engine Ion Engine Propulsion Light Treads Treads Light Treads Leg Aluminum Leg Utility Large Storage Unit Device X0-1V1's Piety Tracker Storage Large Storage Unit Hackware Hacking Suite Weapon Assault Rifle Energy Gun EM Shotgun Ballistic Gun Assault Rifle Build | -11 -10 ------- Run | Yrd Mat Slots Evolved . | . . Power . | . . Propulsion . | . . Utility . | . . Weapon . | . . Parts Attached 19 | 6 13 Power 5 | 1 4 Engine 5 | 1 4 Core . | . . Reactor . | . . Propulsion 5 | 2 3 Treads 4 | 2 2 Leg 1 | . 1 Wheel . | . . Hover . | . . Flight . | . . Utility 4 | 1 3 Device 1 | . 1 Storage 2 | 1 1 Processor . | . . Hackware 1 | . 1 Protection . | . . Artifact . | . . Weapon 5 | 2 3 Energy Gun 1 | . 1 Energy Cannon . | . . Ballistic Gun 4 | 2 2 Ballistic Cannon . | . . Launcher . | . . Special Weapon . | . . Impact Weapon . | . . Slashing Weapon . | . . Piercing Weapon . | . . Special Melee Weapon . | . . Unidentified Prototypes 1 | . 1 Parts Lost 5 | . 5 Power . | . . Propulsion 2 | . 2 Utility 1 | . 1 Weapon 2 | . 2 Highest Loss Streak 2 | . 2 To Critical Strikes . | . . Average Backups 10 | 1 10 Power 3 | . 3 Propulsion 1 | . 1 Utility 1 | . 1 Weapon 3 | 1 3 Tool/Special . | . . Unused Backups 8 | . 8 Power 2 | . 2 Propulsion 2 | . 2 Utility 1 | . 1 Weapon 2 | . 2 Tool/Special 1 | . 1 Average Slot Usage (%) 96 | . 96 Engine 14 | . 14 Treads 26 | . 26 Device 5 | . 5 Storage 14 | . 14 Hackware 7 | . 7 Energy Gun 1 | . 1 Ballistic Gun 25 | . 25 Peak Build Rating 22 | 6 22 Average Rating 13 | 4 13 On Entrance 3 | . 6 Avg Prop Armor Cover (%) . | . . Naked Turns . | . . Heaviest Build 32 | 14 32 Greatest Support 40 | 40 40 Greatest Overweight (x) 2 | . 2 Average Overweight (x) . | . . Largest Inventory Capacity 16 | 8 16 Average Capacity 14 | 7 14 Most Carried 16 | 3 16 Average Carried 10 | 1 10 Final Capacity 16 | 8 16 Final Carried 15 | 2 15 Class Distribution -------------------- 91% | Mutant 8% | Scavenger-Mutant Dominant Class ---------------- Mutant | -10/Materials Resources | -11 -10 ----------- Run | Yrd Mat Matter Collected 752 | 202 550 Remotely . | . . Salvage Created 923 | . 923 Parts 63 | . 63 Haulers Intercepted 2 | . 2 Recyclers Shooed 1 | . 1 Parts Field Recycled . | . . Retrieved Matter . | . . Parts Self-Destructed . | . . Prevented . | . . Parts Restored . | . . Kills | -11 -10 ------- Run | Yrd Mat Combat Hostiles Destroyed 21 | . 21 Guns 21 | . 21 Classes Destroyed 7 | . 7 Worker 1 | . 1 Hauler 2 | . 2 Operator 3 | . 3 Watcher 2 | . 2 Swarmer 6 | . 6 Grunt 13 | . 13 Sentry 2 | . 2 Best Kill Streak 4 | . 4 Combat Bots Only 4 | . 4 Max Kills in Single Turn 2 | . 2 Gunslinging 1 | . 1 Exploded . | . . Melee . | . . Uniques/NPCs Destroyed . | . . Combat | -11 -10 -------- Run | Yrd Mat Hostile Shots Fired 142 | . 142 Missed 41 | . 41 Hits 101 | . 101 Projectile 101 | . 101 Critical Strikes 4 | . 4 Damage Taken 1116 | . 1116 Core 256 | . 256 Absorbed by Shields . | . . Regen/Repaired (Parts) 49 | . 49 Core Remaining (%) 100 | 100 . Volleys Fired 89 | . 89 Largest 2 | . 2 Hottest 65 | . 65 Shots Fired 176 | . 176 Gun 176 | . 176 Cannon . | . . Launcher . | . . Special . | . . Kinetic 166 | . 166 Thermal . | . . Explosive . | . . Electromagnetic 10 | . 10 Robot Hit Streak 10 | . 10 Robot Miss Streak 3 | . 3 Penetration Max . | . . Secondary Targets 4 | . 4 Max Gunslinging Chain 1 | . 1 Shots Hit Robots 118 | . 118 Core Hits 57 | . 57 Critical Kills . | . . Critical Parts Destroyed . | . . Critical Strikes . | . . Melee Attacks . | . . Impact . | . . Slashing . | . . Piercing . | . . Sneak Attacks . | . . Combat Hostiles . | . . Follow-up Attacks . | . . Damage Inflicted 1305 | . 1305 Guns 1293 | . 1293 Cannons . | . . Explosions . | . . Melee . | . . Ramming 12 | . 12 Kinetic 1174 | . 1174 Thermal . | . . Explosive . | . . Electromagnetic 119 | . 119 Impact . | . . Slashing . | . . Piercing . | . . Highest Corruption 1 | . 1 Average Corruption 1 | . 1 Corruption Purged . | . . Corruption Blocked . | . . Overload Shots . | . . Overflow Damage . | . . Projectiles . | . . Explosions . | . . Melee . | . . Knockbacks . | . . Impact . | . . Kinetic . | . . Secondary . | . . Self-Inflicted Damage . | . . Shots . | . . Rammed 2 | . 2 Targets Rammed 2 | . 2 Kicked . | . . Crushed . | . . Highest Temperature 113 | . 113 Average Temperature 29 | . 29 Received Heat Transfer 546 | . 546 Siege Activations . | . . Martial Activations . | . . Shielding Activations . | . . Robots Disrupted . | . . Combat Hostiles . | . . Robots Corrupted . | . . Combat Hostiles . | . . Parts Fried 1 | . 1 Impact Corruptions . | . . Robots Melted . | . . Combat Hostiles . | . . Parts Melted . | . . Heat Transferred . | . . Parts Sabotaged . | . . Parts Stolen . | . . Parts Stripped . | . . Power Chain Reactions . | . . Alert | -11 -10 ------- Run | Yrd Mat Maximum Alert Level . | . . Low Security (%) 100 | 100 100 Level 1 . | . . Level 2 . | . . Level 3 . | . . Level 4 . | . . Level 5 . | . . High Security . | . . Max Security . | . . Peak Influence 95 | . 95 Initial . | . . Average 33 | . 34 Influence Increases 619 | . 619 Destroy 0b10 Robot/C 420 | . 420 Destroy 0b10 Robot/NC 40 | . 40 Destroy Leader 88 | . 88 Successful Hack 8 | . 8 Destroy Structure 3 | . 3 Lose Combat Pursuer 60 | . 60 Influence Decreases 560 | . 560 Time Decay 467 | . 467 Lost Part 50 | . 50 Purge Threat 43 | . 43 Squads Dispatched 6 | . 6 Investigation 1 | . 1 Extermination . | . . Reinforcement 4 | . 4 Assault 1 | . 1 Garrison . | . . Intercept . | . . Searches Triggered . | . . Construction Impeded . | . . Haulers Reinforced . | . . Active Scanning Responses . | . . Cargo Convoy Interrupts . | . . Stealth | -11 -10 --------- Run | Yrd Mat Distress Signals 2 | . 2 Communications Jammed . | . . Distress Signals . | . . Times Spotted 40 | . 40 Peak Tracking Total 4 | . 4 Tactical Retreats 3 | . 3 Traps | -11 -10 ------- Run | Yrd Mat Traps Triggered 1 | . 1 Indirectly . | . . Trap Hack Attempts . | . . Triggered . | . . Disarmed . | . . Reprogrammed . | . . Reused . | . . Traps Extracted . | . . Installed . | . . Triggered . | . . Machines | -11 -10 ---------- Run | Yrd Mat Machines Disabled . | . . Max in Single Turn . | . . Machines Repaired . | . . Machines Dismantled . | . . Machines Sabotaged . | . . Overloaded Fab Kills . | . . Hacking | -11 -10 --------- Run | Yrd Mat Machines Accessed 4 | . 4 Terminals 2 | . 2 Fabricators . | . . Repair Stations 1 | . 1 Recycling Units 1 | . 1 Scanalyzers . | . . Garrison Access . | . . Total Hacks 10 | . 10 Successful 6 | . 6 Failed 4 | . 4 Catastrophic . | . . Database Lockouts . | . . Manual 5 | . 5 Terminals 4 | . 4 Fabricators . | . . Repair Stations 5 | . 5 Recycling Units 1 | . 1 Scanalyzers . | . . Garrison Access . | . . Terminal Hacks 2 | . 2 Branch Access Points 1 | . 1 Unreport Threat 1 | . 1 Fabricator Hacks . | . . Repair Station Hacks 3 | . 3 Scan Component 2 | . 2 Repair 1 | . 1 Recycling Unit Hacks 1 | . 1 Report Inventory 1 | . 1 Scanalyzer . | . . Garrison Access Hacks . | . . Unauthorized Hacks . | . . Terminals . | . . Fabricators . | . . Repair Stations . | . . Recycling Units . | . . Scanalyzers . | . . Garrison Access . | . . Data Cores Recovered 1 | . 1 Used . | . . Hacking Detections 4 | . 4 Full Trace Events 1 | . 1 Feedback Events 1 | . 1 Corruption 1 | . 1 Feedback Blocked . | . . Robot Schematics Acquired . | . . Robots Built . | . . Authchips . | . . Time . | . . Total Robot Build Rating . | . . Part Schematics Acquired . | . . Parts Built . | . . Authchips . | . . Time . | . . Total Part Build Rating . | . . Part Studies Acquired . | . . Parts Repaired 1 | . 1 Time 26 | . 26 Parts Recycled . | . . Recycled Matter . | . . Retrieved Matter . | . . Retrieved Components . | . . Parts Scanalyzed . | . . Part Schematics Acquired . | . . Parts Damaged . | . . Bothacking | -11 -10 ------------ Run | Yrd Mat Used RIF Installer . | . . Robots Hacked . | . . Non-combat . | . . Combat . | . . Robot Hacks Applied . | . . Relay Couplers Released . | . . Fabnet Peak Effective % . | . . Robots Rewired . | . . Allies Hacked . | . . Hacks Repelled . | . . Allies | -11 -10 -------- Run | Yrd Mat Total Allies . | . . Largest Group . | . . Highest-Rated Group . | . . Highest-Rated Ally . | . . Total Orders . | . . Ally Attacks . | . . Total Damage . | . . Kills . | . . Allies Corrupted . | . . Allies Melted . | . . X0-1V1 Amusement Gains 32 | . 32 Good Acts 6 | . 6 Bad Acts 7 | . 7 Intel | -11 -10 ------- Run | Yrd Mat Active Infowar (turns) . | . . Robot Analysis Total . | . . Derelict Logs Recovered . | . . Drone Launches . | . . Drone Recoveries . | . . Exploration | -11 -10 ------------- Run | Yrd Mat Turns Passed 2142 | 84 2058 Spaces Moved 1105 | 47 1058 Core 1 | 1 . Treads 1102 | 46 1056 Legs 2 | . 2 Wheels . | . . Hover . | . . Flight . | . . Fastest Speed 50 | 50 160 Average Speed 163 | 157 163 Slowest Speed 260 | 160 260 Overloaded Moves . | . . Propulsion Burnouts . | . . Robots Hopped . | . . Potential Cave-ins . | . . Cave-ins Triggered . | . . Exploration Rate (%) 44 | 4 85 Regions Visited 1 Branch Regions . Pre-discovered Areas . | . . Known Exits Taken . | . . Unknown Exits Taken 1 | 1 . Scrap Searched . | . . Spaces Dug . | . . Terrain Destroyed . | . . Melee . | . . Projectile . | . . AOE . | . . Terrain Rammed . | . . Walls Destroyed . | . . Machines Disabled . | . . Actions | -11 -10 --------- Run | Yrd Mat Total 1268 | 55 1213 Wait 40 | . 40 Move 1104 | 46 1058 Hop . | . . Pick Up 11 | 3 8 Fast Attach 10 | 5 5 Attach 3 | 1 2 Detach . | . . Swap 9 | . 9 Drop . | . . Fire 89 | . 89 Melee . | . . Ram . | . . Kick . | . . Crush 2 | . 2 Escape Stasis . | . . Rewire . | . . Trap . | . . Miscellaneous . | . . Route ------- -11/Scrapyard -10/Materials (discovered 5 exits: [*Mat x3] / *Min / [*Sub]) History --------- Turn | Location | Event 14 | -11/Scrapyard | Discovered new exit (range 14) 85 | -11/Scrapyard | Entered Materials 199 | -10/Materials | Identified exit to Mines 306 | -10/Materials | Build established: Mutant 334 | -10/Materials | Discovered new exit (range 5) 708 | -10/Materials | Discovered new exit (range 6) 760 | -10/Materials | Discovered new exit (range 12) 1149 | -10/Materials | Core integrity fell below 50% 1290 | -10/Materials | Discovered new exit (range 10) 1313 | -10/Materials | Prayed at D.C.S.S. Altar Unit 1596 | -10/Materials | X0-1V1 announced a LAN party 1598 | -10/Materials | Inventory capacity permanently improved by X0-1V1 (+1; -100 max core) 2024 | -10/Materials | Repaired Lgt. Treads 2138 | -10/Materials | Core integrity fell below 20% 2143 | -10/Materials | Destroyed by G-34 Mercenary with Small Laser Last Messages --------------- Connecting with Repair Station... >>Scan(Assault Rifle) Scanning Assault Rifle... Ready to Repair: Assault Rifle Rating: 1 Time: 26 X0-1V1 is highly amused! Feedback: System corruption (+1%). X0-1V1 lends a hand with your twisted circuits (-1 system corruption). Sight range returns to normal. K-01 Serf collects debris. Acquired 30 matter. K-01 Serf collects debris. Acquired Corrupted Lgt. Treads. R-06 Scavenger collects Lgt. Ion Engine. ALERT: Hostiles spotted, dispatching reinforcements to Terminal M003. X0-1V1 giggles madly! Map ----- +----------------------------------------------------+ | | | | | | | | | | | | | | | #########??????##????????????????????????????????? | | ! #<######X##?????????????????????????#####?? | | / # #?????????????????????????#"""#?? | | """ # #??????????????????????####"T"### | | """ # #??????????????######### | | % """ # #??????????????# | +? ! | | # #??????????????# #?# """ "" | | #####+## #??????????????# #?# """ "" | | ### # #??????????????# #?# """ "" | | ###+#######??????????????# ### | | T ## #?????????############ + | | ### ########### # # # | | ??## ## # < # !# #[ | | ???# ## """ # # """ # /%=* | | ???# ## """ # + """ # #=%[ | | ???# ## """ # # """ # #[!#####+## | | ???#% ## + # # # #?# ## | | ####+#### ## """ # gg##############% #?# ## | | # [*## ## """ # @ k % #?# ## | | # """= ## %## """ # m % #?# ## | | # """ %## ## # #################?# ## | | # """ ## ########### # #????# ## | | # # # """ "" #????#= ## | | # """ # + """ Y" #????# ^## | | # """ # "" # """ "" #????# + | | # """ # "T ######## #????####### | | # [# "" ###########+########???????????# | | ######## #????????????????? | | % ###########??????? | | % + #??????? | | ##""""" #??????? | | ############# ##""""" ######## | | ?????######?# ##""""" # | | ????##!! !### ######### ##""""" + < | | ????#! !## #"""""""# % ##""""" # | | ????# ## #" |"! "# % ##""""" # ##+### | | ##### ## #" "# %#?""""" # # | | #? # + T | | > % #?######### # | | "%"#?????????# #?? | | ########+## #######?????????# #???? | | #??# !%[#########???###?#######?# #????? | | #??# #???????????# #?# #????? | +----------------------------------------------------+ Best States ------------- Heat Dissipation 25 Energy Generation 12 Energy Capacity 1365 Matter Stores 300 Matter Capacity 300 Sight Range 22 Terrain Scan Density 10 Evasion (%) 40 Recoil Reduction 2 Offensive Hacking 10 Item Schematics ----------------- None Robot Schematics ------------------ None Fabricated ------------ Nothing Repaired ---------- Lgt. Treads | 65% | -10/Materials Studied --------- None Alien Tech Used ----------------- None Achievements -------------- Chaos Is Inevitable Challenges ------------ None Game ------ Seed AntigravWarlordReplica Manual? 0 Play Time 00:15:34 Cumulative 6.6 hours Start 2026.07.31 @ 16:58:11 End 2026.07.31 @ 17:12:09 Sessions 1 Manual Loads 0 Difficulty Rogue Special Mode None Game No. 19 Rogue 19 Adventurer 0 Explorer 0 Win Type - Total 0 Types 0/0/0/0/0/0/0/0/0/0 Lore% 12 Gallery% 12 Achievement% 14 Wizard Run 0 Options --------- Layout 1 ASCII 0 Keyboard 0 Movement Arrows Keybinds 0 Fullscreen 2 Font 36/X11 Map View 50x40 Zoom Use 0% Tactical HUD 0 Map Filters NONE Filters NONE Steam 1 RUN: be4262cf-4737-4bba-b504-a1380ad768c1